Cogmind - Beta 15 @@@ ROGUE MODE // 2025.08.23 @ 23:25:48 Player: Greenblue Result: Destroyed by Y-45 Defender with Beam Rifle Performance ------------- Evolutions (1) 500 Regions Visited (2) 400 Robots Destroyed (33) 165 Value Destroyed (788) 788 Prototype IDs (1) 20 Alien Tech Used (0) 0 Bonus (0) 0 TOTAL SCORE: 1873 Bonus ------- None Cogmind --------- Core Integrity 0/400 Matter 291/300 Energy 501/515 System Corruption 0% Temperature Warm (105) Movement Treading (160) Location -9/Materials Parts ------- > --- POWER (1) -------- Improved Ion Engine > --- PROPULSION (2) --- Light Treads Light Treads > --- UTILITY (4) ------ High-capacity Battery Targeting Computer Light Armor Plating Light Armor Plating > --- WEAPON (2) ------- Advanced Beam Cannon Heavy Assault Rifle > --- INVENTORY (5) ---- Ion Engine Light Treads Light Armor Plating Advanced Beam Cannon Shotgun Peak State ------------ > --- POWER ------------ Improved Ion Engine > --- PROPULSION ------- Light Treads Light Treads > --- UTILITY ---------- High-capacity Battery Targeting Computer Light Armor Plating Light Armor Plating > --- WEAPON ----------- Advanced Beam Cannon Heavy Assault Rifle > --- INVENTORY -------- Light Ion Engine Light Treads Light Armor Plating Beam Rifle Shotgun [Rating: 13] Favorites ----------- Power Ion Engine Engine Ion Engine Propulsion Compact Wheel Treads Light Treads Leg Aluminum Leg Wheel Compact Wheel Utility Targeting Computer Storage Small Storage Unit Processor Targeting Computer Protection Light Armor Plating Weapon Medium Laser Energy Gun Medium Laser Energy Cannon Advanced Beam Cannon Ballistic Gun Assault Rifle Build | -11 -10 -9 ------- Run | Yrd Mat Mat Slots Evolved 2 | . . 2 Power . | . . . Propulsion . | . . . Utility 2 | . . 2 Weapon . | . . . Parts Attached 30 | 6 5 19 Power 5 | 1 2 2 Engine 5 | 1 2 2 Core . | . . . Reactor . | . . . Propulsion 9 | 2 1 6 Treads 4 | . . 4 Leg 2 | . . 2 Wheel 3 | 2 1 . Hover . | . . . Flight . | . . . Utility 7 | 1 1 5 Device . | . . . Storage 2 | 1 . 1 Processor 1 | . 1 . Hackware . | . . . Protection 4 | . . 4 Artifact . | . . . Weapon 9 | 2 1 6 Energy Gun 5 | 2 1 2 Energy Cannon 1 | . . 1 Ballistic Gun 3 | . . 3 Ballistic Cannon . | . . . Launcher . | . . . Special Weapon . | . . . Impact Weapon . | . . . Slashing Weapon . | . . . Piercing Weapon . | . . . Special Melee Weapon . | . . . Unidentified Prototypes 1 | . . 1 Parts Lost 14 | . 2 12 Power 2 | . 1 1 Propulsion 5 | . . 5 Utility 3 | . . 3 Weapon 4 | . 1 3 Highest Loss Streak 11 | . 1 11 To Critical Strikes 1 | . . 1 Average Backups 4 | 1 7 3 Power . | . . . Propulsion 1 | 1 2 . Utility 1 | . 2 1 Weapon 1 | . 1 1 Tool/Special . | . . . Unused Backups 4 | . . 4 Power 1 | . . 1 Propulsion . | . . . Utility 1 | . . 1 Weapon 2 | . . 2 Tool/Special . | . . . Average Slot Usage (%) 85 | . 98 76 Engine 9 | . 14 6 Treads 5 | . . 8 Wheel 12 | . 28 2 Storage 15 | . 14 16 Processor 11 | . 12 11 Protection 4 | . . 8 Energy Gun 16 | . 28 8 Ballistic Gun 6 | . . 10 Peak Build Rating 13 | 6 7 13 Average Rating 7 | 4 6 7 On Entrance 4 | . 6 7 Naked Turns . | . . . Heaviest Build 24 | 14 14 24 Greatest Support 40 | 32 32 40 Greatest Overweight (x) 5 | . . 5 Average Overweight (x) . | . . . Largest Inventory Capacity 8 | 8 8 8 Average Capacity 7 | 6 8 7 Most Carried 8 | 4 8 7 Average Carried 4 | 2 7 3 Final Capacity 8 | 8 8 5 Final Carried 8 | 4 8 5 Class Distribution -------------------- 85% | Mutant 14% | Scavenger-Mutant Dominant Class ---------------- Mutant | -10/Materials Mutant | -9/Materials Resources | -11 -10 -9 ----------- Run | Yrd Mat Mat Matter Collected 626 | 175 130 321 Remotely . | . . . Salvage Created 1148 | . 452 696 Parts 62 | . 18 44 Haulers Intercepted 2 | . 1 1 Recyclers Shooed 4 | . . 4 Parts Field Recycled . | . . . Retrieved Matter . | . . . Parts Self-Destructed . | . . . Prevented . | . . . Kills | -11 -10 -9 ------- Run | Yrd Mat Mat Combat Hostiles Destroyed 26 | . 8 18 Guns 24 | . 7 17 Cannons 1 | . . 1 Classes Destroyed 9 | . 6 3 Builder 1 | . . 1 Hauler 2 | . 1 1 Recycler 2 | . 1 1 Mechanic 1 | . 1 . Watcher 1 | . 1 . Swarmer 9 | . 3 6 Grunt 12 | . 5 7 Duelist 1 | . . 1 Sentry 4 | . . 4 Best Kill Streak 8 | . 2 8 Combat Bots Only 7 | . 2 7 Max Kills in Single Turn 2 | . 1 2 Gunslinging . | . . . Exploded . | . . . Melee . | . . . Uniques/NPCs Destroyed . | . . . Combat | -11 -10 -9 -------- Run | Yrd Mat Mat Hostile Shots Fired 232 | . 76 156 Missed 57 | . 18 39 Hits 175 | . 58 117 Melee 4 | . . 4 Projectile 171 | . 58 113 Critical Strikes 1 | . . 1 Damage Taken 1986 | . 590 1396 Core 559 | . 147 412 Absorbed by Shields . | . . . Core Remaining (%) 70 | 100 41 . Volleys Fired 101 | . 35 66 Largest 2 | . 2 2 Hottest 115 | . 100 115 Shots Fired 176 | . 70 106 Gun 173 | . 70 103 Cannon 3 | . . 3 Launcher . | . . . Special . | . . . Kinetic 57 | . . 57 Thermal 119 | . 70 49 Explosive . | . . . Electromagnetic . | . . . Robot Hit Streak 20 | . 7 20 Robot Miss Streak 4 | . 3 4 Penetration Max . | . . . Secondary Targets 5 | . 3 2 Max Gunslinging Chain 1 | . 1 1 Shots Hit Robots 127 | . 47 80 Core Hits 71 | . 20 51 Critical Kills . | . . . Critical Parts Destroyed . | . . . Critical Strikes 6 | . 4 2 Burn 6 | . 4 2 Melee Attacks . | . . . Impact . | . . . Slashing . | . . . Piercing . | . . . Sneak Attacks . | . . . Combat Hostiles . | . . . Follow-up Attacks . | . . . Damage Inflicted 1800 | . 587 1213 Guns 1739 | . 587 1152 Cannons 61 | . . 61 Explosions . | . . . Melee . | . . . Ramming . | . . . Kinetic 566 | . . 566 Thermal 1234 | . 587 647 Explosive . | . . . Electromagnetic . | . . . Impact . | . . . Slashing . | . . . Piercing . | . . . Highest Corruption . | . . . Average Corruption . | . . . Corruption Purged . | . . . Corruption Blocked . | . . . Overload Shots . | . . . Overflow Damage . | . . . Projectiles . | . . . Explosions . | . . . Melee . | . . . Knockbacks . | . . . Impact . | . . . Kinetic . | . . . Secondary . | . . . Self-Inflicted Damage . | . . . Shots . | . . . Rammed . | . . . Targets Rammed . | . . . Kicked . | . . . Crushed . | . . . Highest Temperature 375 | . 375 207 Average Temperature 132 | . 160 81 Received Heat Transfer 594 | . 210 384 Effects 5 | . 5 . Shutdowns 1 | . 1 . Energy Bleed 1 | . 1 . Interference 3 | . 3 . Siege Activations . | . . . Martial Activations . | . . . Shielding Activations . | . . . Robots Disrupted . | . . . Combat Hostiles . | . . . Robots Corrupted . | . . . Combat Hostiles . | . . . Parts Fried . | . . . Impact Corruptions . | . . . Robots Melted 1 | . 1 . Combat Hostiles 1 | . 1 . Parts Melted 4 | . 1 3 Heat Transferred 3559 | . 2035 1524 Parts Sabotaged . | . . . Parts Stolen . | . . . Parts Stripped . | . . . Power Chain Reactions . | . . . Alert | -11 -10 -9 ------- Run | Yrd Mat Mat Maximum Alert Level 1 | . . 1 Low Security (%) 83 | 100 100 72 Level 1 16 | . . 28 Level 2 . | . . . Level 3 . | . . . Level 4 . | . . . Level 5 . | . . . High Security . | . . . Max Security . | . . . Peak Influence 263 | . 68 263 Initial 15 | . . 15 Average 70 | . 31 102 Influence Increases 752 | . 205 547 Destroy 0b10 Robot/C 520 | . 160 360 Destroy 0b10 Robot/NC 35 | . 20 15 Destroy Leader 106 | . 24 82 Successful Hack 14 | . . 14 Destroy Structure 2 | . 1 1 Lose Combat Pursuer 75 | . . 75 Influence Decreases 489 | . 167 322 Entered New Map 23 | . . 23 Time Decay 386 | . 147 239 Lost Part 80 | . 20 60 Squads Dispatched 3 | . 1 2 Investigation 1 | . . 1 Extermination . | . . . Reinforcement 2 | . 1 1 Assault . | . . . Garrison . | . . . Intercept . | . . . Searches Triggered . | . . . Construction Impeded . | . . . Haulers Reinforced . | . . . Active Scanning Responses . | . . . Cargo Convoy Interrupts . | . . . Stealth | -11 -10 -9 --------- Run | Yrd Mat Mat Distress Signals 2 | . . 2 Communications Jammed . | . . . Distress Signals . | . . . Times Spotted 45 | . 12 33 Peak Tracking Total 9 | . 4 9 Tactical Retreats 3 | . . 3 Traps | -11 -10 -9 ------- Run | Yrd Mat Mat Traps Triggered 1 | . . 1 Indirectly . | . . . Trap Hack Attempts . | . . . Triggered . | . . . Disarmed . | . . . Reprogrammed . | . . . Reused . | . . . Traps Extracted . | . . . Installed . | . . . Triggered . | . . . Machines | -11 -10 -9 ---------- Run | Yrd Mat Mat Machines Disabled . | . . . Max in Single Turn . | . . . Machines Repaired . | . . . Machines Dismantled . | . . . Machines Sabotaged . | . . . Overloaded Fab Kills . | . . . Hacking | -11 -10 -9 --------- Run | Yrd Mat Mat Machines Accessed 4 | . 1 3 Terminals 4 | . 1 3 Fabricators . | . . . Repair Stations . | . . . Recycling Units . | . . . Scanalyzers . | . . . Garrison Access . | . . . Total Hacks 14 | . 3 11 Successful 3 | . . 3 Failed 11 | . 3 8 Catastrophic 2 | . . 2 Database Lockouts . | . . . Manual 5 | . 3 2 Terminals 14 | . 3 11 Fabricators . | . . . Repair Stations . | . . . Recycling Units . | . . . Scanalyzers . | . . . Garrison Access . | . . . Terminal Hacks 3 | . . 3 Emergency Access Points 1 | . . 1 Alert Level 1 | . . 1 Zone Layout 1 | . . 1 Fabricator Hacks . | . . . Repair Station Hacks . | . . . Recycling Unit Hacks . | . . . Scanalyzer . | . . . Garrison Access Hacks . | . . . Unauthorized Hacks . | . . . Terminals . | . . . Fabricators . | . . . Repair Stations . | . . . Recycling Units . | . . . Scanalyzers . | . . . Garrison Access . | . . . Data Cores Recovered . | . . . Used . | . . . Hacking Detections 4 | . 1 3 Full Trace Events . | . . . Feedback Events . | . . . Feedback Blocked . | . . . Robot Schematics Acquired . | . . . Robots Built . | . . . Authchips . | . . . Time . | . . . Total Robot Build Rating . | . . . Part Schematics Acquired . | . . . Parts Built . | . . . Authchips . | . . . Time . | . . . Total Part Build Rating . | . . . Parts Repaired . | . . . Time . | . . . Parts Recycled . | . . . Recycled Matter . | . . . Retrieved Matter . | . . . Retrieved Components . | . . . Parts Scanalyzed . | . . . Part Schematics Acquired . | . . . Parts Damaged . | . . . Bothacking | -11 -10 -9 ------------ Run | Yrd Mat Mat Used RIF Installer . | . . . Robots Hacked . | . . . Non-combat . | . . . Combat . | . . . Robot Hacks Applied . | . . . Relay Couplers Released . | . . . Fabnet Peak Effective % . | . . . Robots Rewired . | . . . Allies Hacked . | . . . Hacks Repelled . | . . . Allies | -11 -10 -9 -------- Run | Yrd Mat Mat Total Allies . | . . . Largest Group . | . . . Highest-Rated Group . | . . . Highest-Rated Ally . | . . . Total Orders . | . . . Ally Attacks . | . . . Total Damage . | . . . Kills . | . . . Allies Corrupted . | . . . Allies Melted . | . . . Intel | -11 -10 -9 ------- Run | Yrd Mat Mat Active Infowar (turns) . | . . . Robot Analysis Total . | . . . Derelict Logs Recovered . | . . . Drone Launches . | . . . Drone Recoveries . | . . . Exploration | -11 -10 -9 ------------- Run | Yrd Mat Mat Turns Passed 953 | 41 362 550 Spaces Moved 444 | 32 216 196 Core 54 | 6 . 48 Treads 99 | . . 99 Legs . | . . . Wheels 291 | 26 216 49 Hover . | . . . Flight . | . . . Fastest Speed 50 | 50 90 90 Average Speed 123 | 90 93 162 Slowest Speed 300 | 100 100 300 Overloaded Moves . | . . . Propulsion Burnouts . | . . . Robots Hopped . | . . . Potential Cave-ins . | . . . Cave-ins Triggered . | . . . Exploration Rate (%) 24 | 3 45 25 Regions Visited 2 Branch Regions . Pre-discovered Areas . | . . . Known Exits Taken . | . . . Unknown Exits Taken 2 | 1 1 . Scrap Searched . | . . . Spaces Dug . | . . . Terrain Destroyed . | . . . Melee . | . . . Projectile . | . . . AOE . | . . . Terrain Rammed . | . . . Walls Destroyed . | . . . Machines Disabled . | . . . Actions | -11 -10 -9 --------- Run | Yrd Mat Mat Total 669 | 41 306 322 Wait 73 | . 43 30 Move 442 | 31 215 196 Hop . | . . . Pick Up 14 | 4 6 4 Fast Attach 15 | 6 1 8 Attach 9 | . 2 7 Detach 1 | . . 1 Swap 7 | . 2 5 Drop 7 | . 2 5 Fire 101 | . 35 66 Melee . | . . . Ram . | . . . Kick . | . . . Crush . | . . . Escape Stasis . | . . . Rewire . | . . . Trap . | . . . Miscellaneous . | . . . Route ------- -11/Scrapyard -10/Materials -9/Materials History --------- Turn | Location | Event 30 | -11/Scrapyard | Discovered new exit (range 12) 42 | -11/Scrapyard | Entered Materials 312 | -10/Materials | Build established: Mutant 323 | -10/Materials | Core integrity fell below 50% 390 | -10/Materials | Discovered new exit (range 16) 404 | -10/Materials | Entered another Materials area 404 | -9/Materials | Evolved 2 slots: Utility x2 495 | -9/Materials | Core integrity fell below 50% 554 | -9/Materials | Lost 11 parts (1p5n2u3w) 723 | -9/Materials | Core integrity fell below 20% 827 | -9/Materials | Destroyed 7 combat bots 954 | -9/Materials | Destroyed by Y-45 Defender with Beam Rifle Last Messages --------------- Acquired 32 matter. Acquired 12 matter. R-06 Scavenger collects Flight Unit. R-06 Scavenger collects Ion Engine. A-02 Transporter destroyed. Dropped Med. Laser. Acquired Prototype Energy Cannon. Identified Adv. Beam Cannon. Dropped Beam Rifle. Acquired Adv. Beam Cannon. Dropped Lgt. Ion Engine. Acquired Ion Engine. Acquired 37 matter. Acquired 39 matter. Connecting with Terminal... >>Access(Emergency) Found 1 emergency access door: (28,28) Map updated. G-34 Mercenary destroyed. Map ----- +----------------------------------------------------+ | ????????????? ????????????" """??# | | ????????????# ???????????" """??# # | | ????????????# ######?????=* ???# # | | ????????????+ #?????!% ????# # | | ????????????# #######+###??# ]# | | ????????????# "" # **= #??# ]]# | | ?????????????# """ # = #??# *%# | | ?????????????# R" # =%#??# [[]# | | ?????????????# """ =#= ==[#??# | | ?????????????# =%+% **[#### | | ?????????????# %#[% !+= * | | ?????????????# """ #=! =*#####= | | ?????????????# """ # #???# | | ????????????## """ ###########???####### | | ????????????#" #???????????????????? | | ????????????#" #???????????????????? | | ????????????#" """ #???????????????????? | | ????????????#T """ # ?????????????? | | ????????????#"w """ + ????????????? | | ????????????#" ##??????????????????? | | ????????????#" #???????????????????? | | ????????????## """ #???????????????????? | | ?????????????# """ #???????????????????? | | ?????????????# """ #???????????????????? | | ?????????????# +???????????????????? | | ?????????????# @ #???????????????????? | | ?????????????# ##???????????????????? | | ?????????????# #????????????????????? | | ?????????????# #????????????????????? | | ?????????????+ #????????????????????? | | ?????????????# #????????????????????? | | ?????????????# #????????????????????? | | ?????????????# #????????????????????? | | ?????????????# #????????????????????? | | ?????????????# ##+#????????????????????? | | ?????????????# #???????????????????????? | | ?????????????#gg*#???????????????????????? | | ????????????? %????????????????????????? | | ????????????? Y=????????????????????????? | | ????????????? ????????????????????????? | | ?????????????? ????????????????????????? | | ?????????????????????????????????????????? | | ?????????????????????????????????????????? | | ?????????????????????????????????????????? | | ?????????????????????????????????????????? | | ?????????????????????????????????????????? | | ?????????????????????????????????????????? | | ?????????????????????????????????????????? | | ?????????????????????????????????????????? | | ?????????????????????????????????????????? | +----------------------------------------------------+ Best States ------------- Heat Dissipation 28 Energy Generation 12 Energy Capacity 515 Matter Stores 300 Matter Capacity 300 Sight Range 16 Terrain Scan Density 10 Armor Coverage 300 Evasion (%) 42 Targeting Accuracy 5 Recoil Reduction 2 Item Schematics ----------------- None Robot Schematics ------------------ None Fabricated ------------ Nothing Repaired ---------- Nothing Alien Tech Used ----------------- None Achievements -------------- None Challenges ------------ None Game ------ Seed StasisCorruptionDirector Manual? 0 Play Time 00:17:07 Cumulative 43.3 hours Start 2025.08.23 @ 23:13:46 End 2025.08.23 @ 23:25:48 Sessions 1 Manual Loads 0 Difficulty Rogue Special Mode None Game No. 37 Rogue 37 Adventurer 0 Explorer 0 Win Type - Total 0 Types 0/0/0/0/0/0/0/0/0/0 Lore% 11 Gallery% 28 Achievement% 23 Wizard Run 0 Options --------- Layout 0 ASCII 0 Keyboard 1 Movement Numpad Keybinds 0 Fullscreen 2 Font 24/Smallcaps Map View 76x50 Zoom Use 0% Tactical HUD 0 Map Filters NONE Filters NONE Steam 1 RUN: 89c7954a-2a6c-4ae6-b7a6-f09fee899e7a